fUSD/lending_fUSD_20250110
["ID","MTS","AMOUNT","RATE_DAILY","PERIOD"]
[348365662,1736469067193,-529.72,0.00011207,2]
[348365663,1736469067203,-1346.9,0.00011207,2]
[348365664,1736469067214,-1166.43,0.00011207,2]
[348365665,1736469067224,-833.57,0.00011207,2]
[348365666,1736469067234,-764.76,0.00011207,2]
[348365667,1736469067245,-986.15,0.00011207,2]
[348365668,1736469067255,-872.23,0.00011207,2]
[348365669,1736469067265,-689.07,0.00011207,2]
[348365670,1736469067275,-2286.33,0.00011207,2]
[348365671,1736469067284,-2029.38,0.00011207,2]
[348365672,1736469067294,-1682.83,0.00011207,2]
[348365673,1736469067304,-1403.17,0.00011207,2]
[348365674,1736469067314,-1108.27,0.00011207,2]
[348365675,1736469067327,-500.0,0.00011207,2]
[348365676,1736469067337,-3766.33,0.00011207,2]
[348365677,1736469067347,-726.56064744,0.00011208,2]
[348365678,1736469067360,-500.0,0.00011208,2]
[348365679,1736469067374,-500.0,0.00011208,2]
[348365680,1736469067384,-500.0,0.00011208,2]
[348365681,1736469067394,-500.0,0.00011208,2]
[348365682,1736469067404,-500.0,0.00011208,2]
[348365683,1736469067414,-500.0,0.00011208,2]
[348365684,1736469067424,-500.0,0.00011208,2]
[348365685,1736469067434,-500.0,0.00011208,2]
[348365686,1736469067443,-500.0,0.00011208,2]
[348365687,1736469067453,-500.0,0.00011208,2]
[348365688,1736469067464,-500.0,0.00011208,2]
[348365689,1736469067474,-500.0,0.00011208,2]
[348365690,1736469067484,-500.0,0.00011208,2]
[348365691,1736469067494,-624.15260481,0.00011208,2]
[348365692,1736469067503,-500.0,0.00011208,2]
[348365693,1736469067513,-516.39,0.00011208,2]
[348365694,1736469067523,-1426.53,0.00011208,2]
[348365695,1736469067533,-543.34,0.00011208,2]
[348365696,1736469067543,-1086.89,0.00011208,2]
[348365697,1736469067553,-500.0,0.00011208,2]
[348365698,1736469067563,-651.59,0.00011208,2]
[348365699,1736469067573,-1821.29,0.00011208,2]
[348365700,1736469067583,-500.0,0.00011208,2]
[348365701,1736469067593,-3297.52,0.00011208,2]
[348365702,1736469067603,-2525.42,0.00011208,2]
[348365703,1736469067613,-946.32,0.00011208,2]
[348365704,1736469067623,-500.0,0.00011208,2]
[348365705,1736469067633,-997.74,0.00011208,2]
[348365706,1736469067643,-831.02,0.00011208,2]
[348365707,1736469067653,-2260.63,0.00011208,2]
[348365708,1736469067662,-2087.042455,0.00011208,2]
[348365709,1736469067672,-839.67,0.00011208,2]
[348365710,1736469067682,-1042.55,0.00011208,2]
[348365711,1736469067692,-2157.571587,0.00011208,2]
[348365712,1736469067702,-1385.33,0.00011208,2]
[348365713,1736469067713,-500.0,0.00011208,2]
[348365714,1736469067723,-622.19,0.00011208,2]
[348365715,1736469067733,-500.0,0.00011208,2]
[348365716,1736469067743,-4626.73,0.00011208,2]
[348365717,1736469067752,-1238.46,0.00011208,2]
[348365718,1736469067761,-765.7,0.00011208,2]
[348365719,1736469067771,-1021.29,0.00011208,2]
[348365720,1736469067780,-500.0,0.00011208,2]
[348365721,1736469067790,-1613.0,0.00011208,2]
[348365722,1736469067800,-1437.31,0.00011208,2]
[348365723,1736469067810,-500.0,0.00011208,2]
[348365724,1736469067819,-758.99,0.00011208,2]
[348365725,1736469067829,-927.28,0.00011208,2]
[348365726,1736469067839,-931.3,0.00011208,2]
[348365727,1736469067850,-540.7,0.00011208,2]
[348365728,1736469067860,-759.32,0.00011208,2]
[348365729,1736469067869,-611.05,0.00011208,2]
[348365730,1736469067879,-513.99,0.00011208,2]
[348365731,1736469067889,-4206.38,0.00011208,2]
[348365732,1736469067900,-2454.53,0.00011208,2]
[348365733,1736469067910,-1530.16,0.00011208,2]
[348365734,1736469067920,-500.0,0.00011208,2]
[348365735,1736469067930,-1270.35,0.00011208,2]
[348365736,1736469067940,-1399.01,0.00011208,2]
[348365737,1736469067950,-3569.7,0.00011208,2]
[348365738,1736469067960,-872.78,0.00011208,2]
[348365739,1736469067970,-6169.85,0.00011208,2]
[348365740,1736469067979,-1534.49,0.00011208,2]
[348365741,1736469067989,-2448.29,0.00011208,2]
[348365742,1736469067999,-2016.77,0.00011208,2]
[348365743,1736469068010,-3499.46,0.00011208,2]
[348365744,1736469068020,-1934.71,0.00011208,2]
[348365745,1736469068030,-1430.26,0.00011208,2]
[348365746,1736469068040,-974.4,0.00011208,2]
[348365747,1736469068050,-1541.4,0.00011208,2]
[348365748,1736469068061,-2111.88,0.00011208,2]
[348365749,1736469068071,-151.0,0.00011209,2]
[348365750,1736469068081,-212.144532,0.00011209,2]
[348365751,1736469068090,-658.57,0.00011209,2]
[348365752,1736469068100,-1999.81,0.00011209,2]
[348365753,1736469068109,-936.12,0.00011209,2]
[348365754,1736469068119,-1426.89,0.00011209,2]
[348365755,1736469068128,-1126.78,0.00011209,2]
[348365756,1736469068138,-1387.97,0.00011209,2]
[348365757,1736469068147,-1873.72,0.00011209,2]
[348365758,1736469068156,-2124.38,0.00011209,2]
[348365759,1736469068165,-3258.56,0.00011209,2]
[348365760,1736469068175,-8382.05,0.00011209,2]
[348365761,1736469068184,-1511.11,0.00011209,2]
[348365762,1736469068193,-1156.36,0.00011209,2]
[348365763,1736469068203,-1253.36,0.00011209,2]
[348365764,1736469068213,-3475.34,0.00011209,2]
[348365765,1736469068223,-534.84,0.00011209,2]
[348365766,1736469068233,-1207.83,0.00011209,2]
[348365767,1736469068243,-1747.82,0.00011209,2]
[348365768,1736469068254,-1229.41,0.00011209,2]
[348365769,1736469068265,-2006.98,0.00011209,2]
[348365770,1736469068276,-1390.14,0.00011209,2]
[348365771,1736469068286,-1454.13,0.00011209,2]
[348365772,1736469068297,-500.0,0.00011209,2]
[348365773,1736469068307,-3839.31,0.00011209,2]
[348365774,1736469068317,-2386.47,0.00011209,2]
[348365775,1736469068330,-3000.0,0.0001121,2]
[348365776,1736469068340,-1114.08161821,0.00011211,3]
[348365777,1736469068349,-150.0,0.00011235,2]
[348365778,1736469068359,-1506.4581706,0.00011242,2]
[348365779,1736469068370,-239.51811018,0.00011245,2]
[348365780,1736469068380,-150.0,0.00011251,2]
[348365781,1736469068389,-3032.62866882,0.00011275,2]
[348365782,1736469068400,-150.0,0.00011283,2]
[348365783,1736469068410,-726.56064744,0.00011294,2]
[348365784,1736469068419,-150.0,0.00011319,2]
[348365785,1736469068429,-150.0,0.0001133,2]
[348365786,1736469068438,-500.0,0.00011337,2]
[348365787,1736469068448,-165.42394791,0.00011338,2]
[348365788,1736469068459,-437.32,0.00011342,2]
[348365789,1736469068469,-239.51811018,0.00011348,2]
[348365790,1736469068479,-150.0,0.00011353,2]
[348365791,1736469068490,-411.49,0.00011362,2]
[348365792,1736469068500,-1000.0,0.00011364,2]
[348365793,1736469068510,-150.0,0.00011377,2]
[348365794,1736469068520,-726.56064744,0.00011381,2]
[348365795,1736469068530,-150.0,0.00011424,2]
[348365796,1736469068540,-301.73,0.00011426,2]
[348365797,1736469068550,-3150.32,0.00011438,2]
[348365798,1736469068560,-1840.87,0.00011438,2]
[348365799,1736469068570,-6001.7,0.00011438,2]
[348365800,1736469068579,-239.51811018,0.00011452,2]
[348365801,1736469068589,-150.0,0.00011456,2]
[348365802,1736469068598,-150.0,0.00011456,2]
[348365803,1736469068608,-150.0,0.00011471,2]
[348365804,1736469068617,-500.0,0.0001148,2]
[348365805,1736469068627,-500.0,0.0001148,2]
[348365806,1736469068637,-500.0,0.0001148,2]
[348365807,1736469068647,-522.2,0.0001148,2]
[348365808,1736469068657,-507.67,0.0001148,2]
[348365809,1736469068666,-513.44,0.0001148,2]
[348365810,1736469068676,-500.0,0.0001148,2]
[348365811,1736469068686,-500.0,0.0001148,2]
[348365812,1736469068696,-510.98,0.0001148,2]
[348365813,1736469068707,-500.0,0.0001148,2]
[348365814,1736469068717,-500.0,0.0001148,2]
[348365815,1736469068727,-500.0,0.0001148,2]
[348365816,1736469068738,-606.75451506,0.0001148,2]
[348365817,1736469068747,-619.81,0.0001148,2]
[348365818,1736469068757,-447.23,0.0001148,2]
[348365819,1736469068767,-606.2,0.0001148,2]
[348365820,1736469068777,-500.0,0.0001148,2]
[348365821,1736469068787,-500.0,0.0001148,2]
[348365822,1736469068796,-500.0,0.0001148,2]
[348365823,1736469068806,-500.0,0.0001148,2]
[348365824,1736469068816,-500.0,0.0001148,2]
[348365825,1736469068825,-296.71825668,0.0001148,2]
[348365826,1736469068835,-500.0,0.0001148,2]
[348365827,1736469068845,-500.0,0.0001148,2]
[348365828,1736469068854,-500.0,0.0001148,2]
[348365829,1736469068863,-676.34,0.0001148,2]
[348365830,1736469068873,-500.0,0.0001148,2]
[348365831,1736469068883,-500.0,0.0001148,2]
[348365832,1736469068892,-500.0,0.0001148,2]
[348365833,1736469068902,-500.0,0.0001148,2]
[348365834,1736469068913,-500.0,0.0001148,2]
[348365835,1736469068923,-500.0,0.0001148,2]
[348365836,1736469068933,-571.67,0.0001148,2]
[348365837,1736469068942,-734.94,0.0001148,2]
[348365838,1736469068952,-500.0,0.0001148,2]
[348365839,1736469068963,-500.0,0.0001148,2]
[348365840,1736469068972,-500.0,0.0001148,2]
[348365841,1736469068982,-594.98,0.0001148,2]
[348365842,1736469068992,-500.0,0.0001148,2]
[348365843,1736469069003,-500.0,0.0001148,2]
[348365844,1736469069013,-790.86,0.0001148,2]
[348365845,1736469069022,-500.0,0.0001148,2]
[348365846,1736469069032,-500.0,0.0001148,2]
[348365847,1736469069042,-599.88230343,0.0001148,2]
[348365848,1736469069053,-500.0,0.0001148,2]
[348365849,1736469069063,-500.0,0.0001148,2]
[348365850,1736469069073,-500.0,0.0001148,2]
[348365851,1736469069083,-721.47,0.0001148,2]
[348365852,1736469069093,-500.0,0.0001148,2]
[348365853,1736469069103,-500.0,0.0001148,2]
[348365854,1736469069113,-500.0,0.0001148,2]
[348365855,1736469069123,-500.0,0.0001148,2]
[348365856,1736469069133,-500.0,0.0001148,2]
[348365857,1736469069143,-539.0,0.0001148,2]
[348365858,1736469069153,-500.0,0.0001148,2]
[348365859,1736469069162,-500.0,0.0001148,2]
[348365860,1736469069172,-742.72,0.0001148,2]
[348365861,1736469069237,-500.0,0.0001148,2]
[348365862,1736469069247,-516.75,0.0001148,2]
[348365863,1736469069257,-500.0,0.0001148,2]
[348365864,1736469069267,-500.0,0.0001148,2]
[348365865,1736469069276,-500.0,0.0001148,2]
[348365866,1736469069288,-1754.26,0.0001148,2]
[348365867,1736469069298,-768.76,0.0001148,2]
[348365868,1736469069307,-500.0,0.0001148,2]
[348365869,1736469069317,-1228.59,0.0001148,2]
[348365870,1736469069332,-633.03,0.0001148,2]
[348365871,1736469069343,-517.51,0.0001148,2]
[348365872,1736469069353,-500.0,0.0001148,2]
[348365873,1736469069362,-1153.75,0.0001148,2]
[348365874,1736469069375,-500.0,0.0001148,2]
[348365875,1736469069384,-566.17,0.0001148,2]
[348365876,1736469069394,-172.847339,0.00011481,2]
[348365877,1736469069404,-172.847339,0.00011481,2]
[348365878,1736469069414,-784.27,0.00011481,2]
[348365879,1736469069424,-837.27,0.00011481,2]
[348365880,1736469069433,-500.0,0.00011481,2]
[348365881,1736469069443,-692.69,0.00011481,2]
[348365882,1736469069453,-500.0,0.00011481,2]
[348365883,1736469069464,-687.72,0.00011481,2]
[348365884,1736469069474,-811.65,0.00011481,2]
[348365885,1736469069484,-500.0,0.00011481,2]
[348365886,1736469069494,-500.0,0.00011481,2]
[348365887,1736469069503,-316.41817896,0.00011481,2]
[348365888,1736469069513,-650.85,0.00011481,2]
[348365889,1736469069522,-969.78,0.00011481,2]
[348365890,1736469069531,-793.9,0.00011481,2]
[348365891,1736469069541,-500.0,0.00011481,2]
[348365892,1736469069550,-500.0,0.00011481,2]
[348365893,1736469069560,-500.0,0.00011481,2]
[348365894,1736469069570,-500.0,0.00011481,2]
[348365895,1736469069580,-500.0,0.00011481,2]
[348365896,1736469069589,-1140.27,0.00011481,2]
[348365897,1736469069599,-500.0,0.00011481,2]
[348365898,1736469069609,-927.78,0.00011481,2]
[348365899,1736469069619,-505.16,0.00011481,2]
[348365900,1736469069629,-647.25,0.00011481,2]
[348365901,1736469069639,-1012.32,0.00011481,2]
[348365902,1736469069649,-858.66,0.00011481,2]
[348365903,1736469069659,-735.08,0.00011481,2]
[348365904,1736469069668,-500.0,0.00011481,2]
[348365905,1736469069678,-500.0,0.00011481,2]
[348365906,1736469069687,-929.29,0.00011481,2]
[348365907,1736469069697,-500.0,0.00011481,2]
[348365908,1736469069707,-500.0,0.00011481,2]
[348365909,1736469069717,-1113.07,0.00011481,2]
[348365910,1736469069727,-500.0,0.00011481,2]
[348365911,1736469069736,-875.84,0.00011481,2]
[348365912,1736469069746,-580.25,0.00011481,2]
[348365913,1736469069755,-500.0,0.00011481,2]
[348365914,1736469069765,-771.24,0.00011481,2]
[348365915,1736469069774,-763.42,0.00011481,2]
[348365916,1736469069784,-593.58,0.00011481,2]
[348365917,1736469069794,-500.0,0.00011481,2]
[348365918,1736469069804,-1007.01,0.00011481,2]
[348365919,1736469069815,-887.78,0.00011481,2]
[348365920,1736469069825,-583.94,0.00011481,2]
[348365921,1736469069835,-571.7,0.00011481,2]
[348365922,1736469069846,-571.35,0.00011481,2]
[348365923,1736469069856,-873.28,0.00011481,2]
[348365924,1736469069868,-968.01,0.00011481,2]
[348365925,1736469069879,-507.0,0.00011481,2]
[348365926,1736469069890,-500.0,0.00011481,2]
[348365927,1736469069902,-971.72,0.00011481,2]
[348365928,1736469069911,-724.91,0.00011481,2]
[348365929,1736469069922,-705.32,0.00011481,2]
[348365930,1736469069933,-500.0,0.00011481,2]
[348365931,1736469069943,-500.0,0.00011481,2]
[348365932,1736469069952,-594.85,0.00011481,2]
[348365933,1736469069963,-500.0,0.00011481,2]
[348365934,1736469069973,-932.6,0.00011481,2]
[348365935,1736469069983,-709.42,0.00011481,2]
[348365936,1736469069992,-562.7,0.00011481,2]
[348365937,1736469070002,-537.08,0.00011481,2]
[348365938,1736469070011,-948.6,0.00011481,2]
[348365939,1736469070021,-500.0,0.00011481,2]
[348365940,1736469070031,-500.0,0.00011481,2]
[348365941,1736469070041,-583.66,0.00011481,2]
[348365942,1736469070050,-539.22,0.00011481,2]
[348365943,1736469070061,-1010.24,0.00011481,2]
[348365944,1736469070070,-500.0,0.00011481,2]
[348365945,1736469070082,-806.1,0.00011481,2]
[348365946,1736469070092,-587.65,0.00011481,2]
[348365947,1736469070102,-500.0,0.00011481,2]
[348365948,1736469070116,-586.76,0.00011481,2]
[348365949,1736469070126,-773.58,0.00011481,2]
[348365950,1736469070136,-500.0,0.00011481,2]
[348365951,1736469070145,-530.93,0.00011481,2]
[348365952,1736469070155,-846.63,0.00011481,2]
[348365953,1736469070164,-812.61,0.00011481,2]
[348365954,1736469070174,-1028.64,0.00011481,2]
[348365955,1736469070185,-931.29,0.00011481,2]
[348365956,1736469070195,-1000.18,0.00011481,2]
[348365957,1736469070207,-706.39,0.00011481,2]
[348365958,1736469070217,-1150.67,0.00011481,2]
[348365959,1736469070227,-500.0,0.00011481,2]
[348365960,1736469070240,-500.0,0.00011481,2]
[348365961,1736469070251,-816.59,0.00011481,2]
[348365962,1736469070261,-500.0,0.00011481,2]
[348365963,1736469070271,-408.42431768,0.00011481,2]
[348365964,1736469070281,-983.2,0.00011481,2]
[348365965,1736469070291,-933.31,0.00011481,2]
[348365966,1736469070300,-555.8,0.00011481,2]
[348365967,1736469070310,-680.8,0.00011481,2]
[348365968,1736469070319,-366.94533332,0.00011481,2]
[348365969,1736469070333,-648.27,0.00011481,2]
[348365970,1736469070343,-628.4,0.00011481,2]
[348365971,1736469070352,-618.01,0.00011481,2]
[348365972,1736469070362,-884.57,0.00011481,2]
[348365973,1736469070372,-1621.5,0.00011481,2]
[348365974,1736469070382,-1192.34,0.00011481,2]
[348365975,1736469070392,-825.03,0.00011481,2]
[348365976,1736469070404,-3229.12,0.00011481,2]
[348365977,1736469070414,-1102.44,0.00011481,2]
[348365978,1736469070424,-4511.39,0.00011481,2]
[348365979,1736469070434,-500.0,0.00011481,2]
[348365980,1736469070444,-9672.34,0.00011481,2]
[348365981,1736469070454,-500.0,0.00011481,2]
[348365982,1736469070466,-675.88,0.00011481,2]
[348365983,1736469070476,-1329.59,0.00011481,2]
[348365984,1736469070485,-1061.76,0.00011481,2]
[348365985,1736469070495,-1233.37,0.00011481,2]
[348365986,1736469070504,-812.91,0.00011481,2]
[348365987,1736469070514,-1633.77,0.00011481,2]
[348365988,1736469070524,-1444.51,0.00011481,2]
[348365989,1736469070533,-783.75,0.00011481,2]
[348365990,1736469070542,-1499.89,0.00011481,2]
[348365991,1736469070551,-897.44,0.00011481,2]
[348365992,1736469070561,-1747.09,0.00011481,2]
[348365993,1736469070570,-500.0,0.00011481,2]
[348365994,1736469070579,-2782.79,0.00011481,2]
[348365995,1736469070589,-681.98,0.00011481,2]
[348365996,1736469070598,-699.86,0.00011481,2]
[348365997,1736469070607,-771.43,0.00011481,2]
[348365998,1736469070616,-1552.23,0.00011481,2]
[348365999,1736469070626,-2593.06,0.00011481,2]
[348366000,1736469070635,-500.0,0.00011481,2]
[348366001,1736469070644,-831.76,0.00011481,2]
[348366002,1736469070654,-500.0,0.00011481,2]
[348366003,1736469070663,-1961.57,0.00011481,2]
[348366004,1736469070673,-1123.79,0.00011481,2]
[348366005,1736469070683,-942.52,0.00011481,2]
[348366006,1736469070692,-505.08,0.00011481,2]
[348366007,1736469070702,-4672.92,0.00011481,2]
[348366008,1736469070712,-500.0,0.00011481,2]
[348366009,1736469070721,-4901.89,0.00011481,2]
[348366010,1736469070730,-734.81,0.00011481,2]
[348366011,1736469070739,-564.90114472,0.00011481,2]
[348366012,1736469070749,-2414.55,0.00011481,2]
[348366013,1736469070758,-1126.65,0.00011481,2]
[348366014,1736469070767,-643.21,0.00011481,2]
[348366015,1736469070776,-1657.36,0.00011481,2]
[348366016,1736469070785,-1070.66,0.00011481,2]
[348366017,1736469070794,-2199.85,0.00011481,2]
[348366018,1736469070803,-1099.93,0.00011481,2]
[348366019,1736469070812,-953.69,0.00011481,2]
[348366020,1736469070822,-1281.32,0.00011481,2]
[348366021,1736469070831,-1168.64,0.00011481,2]
[348366022,1736469070840,-500.0,0.00011481,2]
[348366023,1736469070849,-2296.7,0.00011481,2]
[348366024,1736469070858,-715.65,0.00011481,2]
[348366025,1736469070867,-1447.16,0.00011481,2]
[348366026,1736469070877,-1985.32,0.00011481,2]
[348366027,1736469070886,-873.2,0.00011481,2]
[348366028,1736469070895,-663.43,0.00011481,2]
[348366029,1736469070904,-3682.88,0.00011481,2]
[348366030,1736469070913,-1310.8,0.00011481,2]
[348366031,1736469070922,-506.47,0.00011481,2]
[348366032,1736469070931,-711.43,0.00011481,2]
[348366033,1736469070941,-1133.8,0.00011481,2]
[348366034,1736469070950,-673.26,0.00011481,2]
[348366035,1736469070960,-500.0,0.00011481,2]
[348366036,1736469070970,-2821.02,0.00011481,2]
[348366037,1736469070979,-501.43,0.00011481,2]
[348366038,1736469070988,-529.72,0.00011481,2]
[348366039,1736469070998,-1346.9,0.00011481,2]
[348366040,1736469071007,-1166.43,0.00011481,2]
[348366041,1736469071016,-833.57,0.00011481,2]
[348366042,1736469071025,-764.76,0.00011481,2]
[348366043,1736469071034,-986.15,0.00011481,2]
[348366044,1736469071044,-872.23,0.00011481,2]
[348366045,1736469071053,-689.07,0.00011481,2]
[348366046,1736469071063,-2286.33,0.00011481,2]
[348366047,1736469071072,-2029.38,0.00011481,2]
[348366048,1736469071081,-1682.83,0.00011481,2]
[348366049,1736469071091,-1403.17,0.00011481,2]
[348366050,1736469071100,-1108.27,0.00011481,2]
[348366051,1736469071110,-500.0,0.00011481,2]
[348366052,1736469071119,-3766.33,0.00011481,2]
[348366053,1736469071128,-151.0,0.00011482,2]
[348366054,1736469071138,-500.0,0.00011482,2]
[348366055,1736469071147,-500.0,0.00011482,2]
[348366056,1736469071156,-500.0,0.00011482,2]
[348366057,1736469071165,-500.0,0.00011482,2]
[348366058,1736469071175,-500.0,0.00011482,2]
[348366059,1736469071185,-500.0,0.00011482,2]
[348366060,1736469071194,-500.0,0.00011482,2]
[348366061,1736469071203,-500.0,0.00011482,2]
[348366062,1736469071215,-500.0,0.00011482,2]
[348366063,1736469071225,-500.0,0.00011482,2]
[348366064,1736469071234,-500.0,0.00011482,2]
[348366065,1736469071244,-500.0,0.00011482,2]
[348366066,1736469071253,-630.82,0.00011482,2]
[348366067,1736469071263,-516.39,0.00011482,2]
[348366068,1736469071272,-543.34,0.00011482,2]
[348366069,1736469071282,-1426.53,0.00011482,2]
[348366070,1736469071293,-1086.89,0.00011482,2]
[348366071,1736469071303,-500.0,0.00011482,2]
[348366072,1736469071312,-651.59,0.00011482,2]
[348366073,1736469071322,-1821.29,0.00011482,2]
[348366074,1736469071335,-500.0,0.00011482,2]
[348366075,1736469071344,-3297.52,0.00011482,2]
[348366076,1736469071353,-2525.42,0.00011482,2]
[348366077,1736469071362,-946.32,0.00011482,2]
[348366078,1736469071373,-500.0,0.00011482,2]
[348366079,1736469071382,-997.74,0.00011482,2]
[348366080,1736469071391,-831.02,0.00011482,2]
[348366081,1736469071400,-2260.63,0.00011482,2]
[348366082,1736469071410,-2087.042455,0.00011482,2]
[348366083,1736469071419,-839.67,0.00011482,2]
[348366084,1736469071428,-1042.55,0.00011482,2]
[348366085,1736469071437,-2157.571587,0.00011482,2]
[348366086,1736469071447,-1385.33,0.00011482,2]
[348366087,1736469071455,-500.0,0.00011482,2]
[348366088,1736469071465,-622.19,0.00011482,2]
[348366089,1736469071474,-500.0,0.00011482,2]
[348366090,1736469071483,-4626.73,0.00011482,2]
[348366091,1736469071493,-1238.46,0.00011482,2]
[348366092,1736469071502,-458.69275095,0.00011482,2]
[348366093,1736469072303,-559.18,9.836e-05,2]
[348366094,1736469072314,-500.0,9.837e-05,2]
[348366095,1736469072327,-500.0,9.837e-05,2]
[348366096,1736469072338,-500.0,0.00010111,2]
[348366097,1736469072349,-2651.29597306,0.00010336,2]
[348366098,1736469072361,-5773.08,0.00010336,2]
[348366099,1736469072460,-1197.62402694,0.00010336,2]
[348366100,1736469072470,-500.0,0.00010385,2]
[348366101,1736469072480,-1707.194826,0.00010932,2]
[348366102,1736469072493,-367.175174,0.00010932,2]
[348366103,1736469072503,-457.79347805,0.00011206,2]
[348366104,1736469072515,-1616.57652195,0.00011206,2]
[348366105,1736469072524,-307.00724905,0.00011482,2]
[348366106,1736469072534,-1021.29,0.00011482,2]
[348366107,1736469072544,-500.0,0.00011482,2]
[348366108,1736469072554,-1613.0,0.00011482,2]
[348366109,1736469072563,-1437.31,0.00011482,2]
[348366110,1736469072573,-500.0,0.00011482,2]
[348366111,1736469072584,-758.99,0.00011482,2]
[348366112,1736469072594,-927.28,0.00011482,2]
[348366113,1736469072603,-931.3,0.00011482,2]
[348366114,1736469072613,-540.7,0.00011482,2]
[348366115,1736469072623,-759.32,0.00011482,2]
[348366116,1736469072633,-611.05,0.00011482,2]
[348366117,1736469072643,-513.99,0.00011482,2]
[348366118,1736469072652,-4206.38,0.00011482,2]
[348366119,1736469072662,-2322.35799046,0.00011482,2]
[348366120,1736469072678,-132.17200954,0.00011482,2]
[348366121,1736469072688,-1530.16,0.00011482,2]
[348366122,1736469072698,-500.0,0.00011482,2]
[348366123,1736469072708,-1270.35,0.00011482,2]
[348366124,1736469072719,-1399.01,0.00011482,2]
[348366125,1736469072729,-3569.7,0.00011482,2]
[348366126,1736469072739,-872.78,0.00011482,2]
[348366127,1736469072749,-6169.85,0.00011482,2]
[348366128,1736469072759,-1534.49,0.00011482,2]
[348366129,1736469072768,-2448.29,0.00011482,2]
[348366130,1736469072780,-2016.77,0.00011482,2]
[348366131,1736469072790,-3499.46,0.00011482,2]
[348366132,1736469072800,-1934.71,0.00011482,2]
[348366133,1736469072812,-1430.26,0.00011482,2]
[348366134,1736469072823,-974.4,0.00011482,2]
[348366135,1736469072835,-1541.4,0.00011482,2]
[348366136,1736469072849,-2111.88,0.00011482,2]
[348366137,1736469072859,-658.57,0.00011483,2]
[348366138,1736469072869,-1999.81,0.00011483,2]
[348366139,1736469072881,-936.12,0.00011483,2]
[348366140,1736469072893,-1426.89,0.00011483,2]
[348366141,1736469072902,-1126.78,0.00011483,2]
[348366142,1736469072911,-1387.97,0.00011483,2]
[348366143,1736469072921,-1873.72,0.00011483,2]
[348366144,1736469072930,-2124.38,0.00011483,2]
[348366145,1736469072940,-3258.56,0.00011483,2]
[348366146,1736469072949,-1788.41050113,0.00011483,2]
[348366147,1736469090840,150.0,0.00018611,120]
[348366148,1736469150820,150.0,0.00019227,120]
[348366149,1736469210780,150.0,0.00019792,120]
[348366150,1736469271329,150.0,0.00019451,120]
[348366151,1736469330996,150.0,0.00019261,120]
[348366152,1736469592192,185.0,0.0002,120]
[348366153,1736469612281,185.0,0.0002,120]
[348366154,1736469665794,1068.74,8.219e-05,2]
[348366161,1736470000918,3000.0,0.0002,120]
[348366186,1736470232169,-250.0,9.011e-05,2]
[348366187,1736470232179,-1500.0,9.011e-05,2]
[348366188,1736470232189,-435.53507333,9.09e-05,2]
[348366189,1736470232259,-64.46492667,9.09e-05,2]
[348366190,1736470232268,-300.0,9.121e-05,2]
[348366191,1736470232277,-255.07053568,9.122e-05,2]